[Event "Titled Tuesday Blitz October 31 Late 2023"]
[White "Martinez Alcantara, Jose Eduardo"]
[Black "Matinian, Nikita"]
[WhiteFideId "3805662"]
[BlackFideId "24129100"]
[WhiteElo "3118"]
[BlackElo "2640"]
[Result "1-0"]
[Round "2"]
[TimeControl "180+1"]
[Date "2023.10.31"]
[WhiteClock "0:01:00"]
[BlackClock "0:00:00"]
[Board "2"]

1. e4 {[%clk 0:03:00]}  c5 {[%clk 0:03:00]} 2. Nf3 {[%clk 0:03:01]}  d6 {[%clk 0:03:01]} 3. c3 {[%clk 0:03:01]}  Nf6 {[%clk 0:03:01]} 4. h3 {[%clk 0:03:02]}  g6 {[%clk 0:02:52]} 5. Bd3 {[%clk 0:03:03]}  Bg7 {[%clk 0:02:52]} 6. Bc2 {[%clk 0:03:03]}  O-O {[%clk 0:02:53]} 7. d4 {[%clk 0:03:04]}  e5 {[%clk 0:02:47]} 8. dxc5 {[%clk 0:03:00]}  dxc5 {[%clk 0:02:47]} 9. Qxd8 {[%clk 0:03:01]}  Rxd8 {[%clk 0:02:47]} 10. Be3 {[%clk 0:03:01]}  b6 {[%clk 0:02:41]} 11. Nbd2 {[%clk 0:03:02]}  Bb7 {[%clk 0:02:41]} 12. Nxe5 {[%clk 0:02:53]}  Re8 {[%clk 0:02:35]} 13. Nec4 {[%clk 0:02:53]}  Nxe4 {[%clk 0:02:20]} 14. Bxe4 {[%clk 0:02:52]}  Bxe4 {[%clk 0:02:16]} 15. Nd6 {[%clk 0:02:28]}  Bxg2 {[%clk 0:02:15]} 16. Nxe8 {[%clk 0:02:29]}  Bxh1 {[%clk 0:02:15]} 17. Nc7 {[%clk 0:02:30]}  Nd7 {[%clk 0:02:06]} 18. Nxa8 {[%clk 0:02:27]}  Bxa8 {[%clk 0:02:07]} 19. Nc4 {[%clk 0:02:25]}  Bd5 {[%clk 0:02:04]} 20. O-O-O {[%clk 0:02:25]}  Be6 {[%clk 0:02:02]} 21. Nd6 {[%clk 0:02:15]}  Bxh3 {[%clk 0:01:57]} 22. Ne8 {[%clk 0:02:03]}  h5 {[%clk 0:01:16]} 23. Nxg7 {[%clk 0:02:01]}  Kxg7 {[%clk 0:01:17]} 24. a4 {[%clk 0:01:56]}  f6 {[%clk 0:01:16]} 25. b4 {[%clk 0:01:51]}  g5 {[%clk 0:01:16]} 26. f4 {[%clk 0:01:43]}  cxb4 {[%clk 0:00:40]} 27. cxb4 {[%clk 0:01:42]}  gxf4 {[%clk 0:00:33]} 28. Bxf4 {[%clk 0:01:43]}  Kg6 {[%clk 0:00:29]} 29. Bg3 {[%clk 0:01:35]}  Ne5 {[%clk 0:00:26]} 30. Rd8 {[%clk 0:01:32]}  Nc6 {[%clk 0:00:20]} 31. Rg8+ {[%clk 0:01:27]}  Kf7 {[%clk 0:00:19]} 32. Ra8 {[%clk 0:01:26]}  Nxb4 {[%clk 0:00:19]} 33. Rxa7+ {[%clk 0:01:26]}  Kg6 {[%clk 0:00:18]} 34. Kd2 {[%clk 0:01:27]}  Nd5 {[%clk 0:00:18]} 35. Ra8 {[%clk 0:01:22]}  Bg2 {[%clk 0:00:16]} 36. Bf2 {[%clk 0:01:19]}  Kf5 {[%clk 0:00:15]} 37. Rb8 {[%clk 0:01:18]}  Kg4 {[%clk 0:00:08]} 38. Ke1 {[%clk 0:01:10]}  f5 {[%clk 0:00:05]} 39. Rg8+ {[%clk 0:01:04]}  Kh3 {[%clk 0:00:04]} 40. Rg5 {[%clk 0:01:04]}  h4 {[%clk 0:00:02]} 41. Rh5 {[%clk 0:01:05]}  Kg4 {[%clk 0:00:02]} 42. Rxh4+ {[%clk 0:01:06]}  Kf3 {[%clk 0:00:03]} 43. Rd4 {[%clk 0:01:00]}  Nc3 {[%clk 0:00:00]} 44. Rd3+ {[%clk 0:01:00]} 1-0


[Site "https://www.chess.com"]

[Event "Titled Tuesday Blitz October 31 Late 2023"]
[White "Volkov, Maksim"]
[Black "Andreikin, Dmitry"]
[WhiteFideId "54123070"]
[BlackFideId "4158814"]
[WhiteElo "2640"]
[BlackElo "3108"]
[Result "0-1"]
[Round "2"]
[TimeControl "180+1"]
[Date "2023.10.31"]
[WhiteClock "0:00:04"]
[BlackClock "0:01:05"]
[Board "3"]

1. d4 {[%clk 0:03:00]}  d5 {[%clk 0:02:58]} 2. c4 {[%clk 0:03:01]}  e6 {[%clk 0:02:58]} 3. Nf3 {[%clk 0:03:01]}  a6 {[%clk 0:02:56]} 4. g3 {[%clk 0:02:57]}  dxc4 {[%clk 0:02:52]} 5. Bg2 {[%clk 0:02:57]}  b5 {[%clk 0:02:52]} 6. Ne5 {[%clk 0:02:42]}  Ra7 {[%clk 0:02:52]} 7. a4 {[%clk 0:02:39]}  Bb7 {[%clk 0:02:48]} 8. O-O {[%clk 0:02:22]}  Bxg2 {[%clk 0:02:48]} 9. Kxg2 {[%clk 0:02:23]}  Rb7 {[%clk 0:02:48]} 10. axb5 {[%clk 0:01:59]}  axb5 {[%clk 0:02:48]} 11. b3 {[%clk 0:01:48]}  cxb3 {[%clk 0:02:22]} 12. Bb2 {[%clk 0:01:48]}  Nf6 {[%clk 0:02:19]} 13. Nd2 {[%clk 0:01:46]}  Be7 {[%clk 0:02:15]} 14. Nxb3 {[%clk 0:01:46]}  O-O {[%clk 0:02:15]} 15. f3 {[%clk 0:01:44]}  Rb6 {[%clk 0:02:11]} 16. Qc2 {[%clk 0:01:41]}  Nd5 {[%clk 0:02:10]} 17. Kf2 {[%clk 0:01:36]}  Nb4 {[%clk 0:02:08]} 18. Qc3 {[%clk 0:01:32]}  N8c6 {[%clk 0:02:06]} 19. Rfd1 {[%clk 0:01:22]}  Nd5 {[%clk 0:01:56]} 20. Qc1 {[%clk 0:01:03]}  Nxe5 {[%clk 0:01:55]} 21. dxe5 {[%clk 0:01:03]}  Qc8 {[%clk 0:01:56]} 22. Bd4 {[%clk 0:00:55]}  c5 {[%clk 0:01:54]} 23. e4 {[%clk 0:00:23]}  Nb4 {[%clk 0:01:49]} 24. Be3 {[%clk 0:00:17]}  Rc6 {[%clk 0:01:46]} 25. Na5 {[%clk 0:00:12]}  Ra6 {[%clk 0:01:45]} 26. Qb2 {[%clk 0:00:10]}  c4 {[%clk 0:01:45]} 27. Kg2 {[%clk 0:00:11]}  h5 {[%clk 0:01:43]} 28. Bd2 {[%clk 0:00:11]}  Qc5 {[%clk 0:01:20]} 29. Nb7 {[%clk 0:00:11]}  Qb6 {[%clk 0:01:20]} 30. Bxb4 {[%clk 0:00:12]}  Rxa1 {[%clk 0:01:18]} 31. Rxa1 {[%clk 0:00:13]}  Bxb4 {[%clk 0:01:17]} 32. Qxb4 {[%clk 0:00:13]}  Qxb7 {[%clk 0:01:18]} 33. Rb1 {[%clk 0:00:14]}  Rb8 {[%clk 0:01:16]} 34. h4 {[%clk 0:00:15]}  g6 {[%clk 0:01:16]} 35. Kh3 {[%clk 0:00:13]}  Qc7 {[%clk 0:01:15]} 36. f4 {[%clk 0:00:12]}  c3 {[%clk 0:01:14]} 37. Rc1 {[%clk 0:00:13]}  c2 {[%clk 0:01:15]} 38. Qb3 {[%clk 0:00:12]}  Rc8 {[%clk 0:01:15]} 39. Qxb5 {[%clk 0:00:13]}  Qc3 {[%clk 0:01:14]} 40. Qe2 {[%clk 0:00:13]}  Rc4 {[%clk 0:01:10]} 41. Kh2 {[%clk 0:00:12]}  Qb2 {[%clk 0:01:07]} 42. Qd2 {[%clk 0:00:12]}  Rd4 {[%clk 0:01:06]} 43. Qe1 {[%clk 0:00:06]}  Rxe4 {[%clk 0:01:06]} 44. Qd2 {[%clk 0:00:04]}  Re2+ {[%clk 0:01:05]} 0-1


[Site "https://www.chess.com"]

[Event "Titled Tuesday Blitz October 31 Late 2023"]
[White "Hakobyan, Aram"]
[Black "Schwabeneder, Florian"]
[WhiteFideId "13306677"]
[BlackFideId "1626191"]
[WhiteElo "3069"]
[BlackElo "2632"]
[Result "1-0"]
[Round "2"]
[TimeControl "180+1"]
[Date "2023.10.31"]
[WhiteClock "0:00:08"]
[BlackClock "0:00:00"]
[Board "4"]

1. d4 {[%clk 0:03:00]}  Nf6 {[%clk 0:02:59]} 2. c4 {[%clk 0:03:01]}  e6 {[%clk 0:03:00]} 3. Nc3 {[%clk 0:03:01]}  d5 {[%clk 0:03:00]} 4. Nf3 {[%clk 0:03:01]}  Bb4 {[%clk 0:02:59]} 5. Qa4+ {[%clk 0:03:00]}  Nc6 {[%clk 0:02:58]} 6. a3 {[%clk 0:03:00]}  Bxc3+ {[%clk 0:02:57]} 7. bxc3 {[%clk 0:03:01]}  Ne4 {[%clk 0:02:53]} 8. Bf4 {[%clk 0:02:58]}  O-O {[%clk 0:02:48]} 9. e3 {[%clk 0:02:56]}  Bd7 {[%clk 0:02:44]} 10. Qc2 {[%clk 0:02:53]}  Na5 {[%clk 0:02:37]} 11. Bd3 {[%clk 0:02:51]}  c5 {[%clk 0:02:02]} 12. cxd5 {[%clk 0:02:07]}  exd5 {[%clk 0:02:01]} 13. O-O {[%clk 0:02:05]}  cxd4 {[%clk 0:01:58]} 14. cxd4 {[%clk 0:01:51]}  Rc8 {[%clk 0:01:57]} 15. Qb1 {[%clk 0:01:50]}  Bf5 {[%clk 0:01:47]} 16. Qb4 {[%clk 0:01:38]}  Bg6 {[%clk 0:01:37]} 17. Ne5 {[%clk 0:01:35]}  b6 {[%clk 0:01:17]} 18. Rac1 {[%clk 0:01:29]}  Nf6 {[%clk 0:00:56]} 19. Nxg6 {[%clk 0:01:11]}  hxg6 {[%clk 0:00:54]} 20. Ba6 {[%clk 0:00:59]}  Rc6 {[%clk 0:00:44]} 21. Bb5 {[%clk 0:00:56]}  Rc8 {[%clk 0:00:42]} 22. Bd6 {[%clk 0:00:51]}  Nc4 {[%clk 0:00:26]} 23. Bxc4 {[%clk 0:00:41]}  dxc4 {[%clk 0:00:26]} 24. Bxf8 {[%clk 0:00:42]}  Qxf8 {[%clk 0:00:26]} 25. Rxc4 {[%clk 0:00:41]}  Rxc4 {[%clk 0:00:22]} 26. Qxc4 {[%clk 0:00:42]}  Qxa3 {[%clk 0:00:22]} 27. Qc8+ {[%clk 0:00:42]}  Kh7 {[%clk 0:00:22]} 28. Qh3+ {[%clk 0:00:42]}  Kg8 {[%clk 0:00:21]} 29. Qc8+ {[%clk 0:00:43]}  Kh7 {[%clk 0:00:21]} 30. Rc1 {[%clk 0:00:39]}  g5 {[%clk 0:00:18]} 31. h3 {[%clk 0:00:37]}  Kg6 {[%clk 0:00:17]} 32. Qc2+ {[%clk 0:00:26]}  Kh6 {[%clk 0:00:16]} 33. Rd1 {[%clk 0:00:26]}  Nd5 {[%clk 0:00:12]} 34. Qc6+ {[%clk 0:00:22]}  Nf6 {[%clk 0:00:13]} 35. d5 {[%clk 0:00:20]}  Qb3 {[%clk 0:00:12]} 36. Rd4 {[%clk 0:00:18]}  Qb1+ {[%clk 0:00:08]} 37. Kh2 {[%clk 0:00:19]}  Qf1 {[%clk 0:00:09]} 38. Qc2 {[%clk 0:00:09]}  Qb5 {[%clk 0:00:02]} 39. d6 {[%clk 0:00:08]}  Qd7 {[%clk 0:00:03]} 40. Qc7 {[%clk 0:00:07]}  Qf5 {[%clk 0:00:02]} 41. d7 {[%clk 0:00:07]}  Qxf2 {[%clk 0:00:02]} 42. d8=Q {[%clk 0:00:07]}  g4 {[%clk 0:00:03]} 43. Qf4+ {[%clk 0:00:06]}  Qxf4+ {[%clk 0:00:02]} 44. Rxf4 {[%clk 0:00:07]}  g3+ {[%clk 0:00:00]} 45. Kxg3 {[%clk 0:00:08]} 1-0


[Site "https://www.chess.com"]

[Event "Titled Tuesday Blitz October 31 Late 2023"]
[White "Paravyan, David"]
[Black "Pinheiro, Iung Alicio de O."]
[WhiteFideId "4194985"]
[BlackFideId "2104350"]
[WhiteElo "3053"]
[BlackElo "2631"]
[Result "1/2-1/2"]
[Round "2"]
[TimeControl "180+1"]
[Date "2023.10.31"]
[WhiteClock "0:00:55"]
[BlackClock "0:00:14"]
[Board "5"]

1. e4 {[%clk 0:02:59]}  c5 {[%clk 0:02:49]} 2. Nf3 {[%clk 0:02:59]}  Nc6 {[%clk 0:02:49]} 3. Bb5 {[%clk 0:02:59]}  e6 {[%clk 0:02:49]} 4. Bxc6 {[%clk 0:02:58]}  bxc6 {[%clk 0:02:48]} 5. d3 {[%clk 0:02:59]}  Ne7 {[%clk 0:02:47]} 6. Nbd2 {[%clk 0:02:57]}  f6 {[%clk 0:02:34]} 7. e5 {[%clk 0:02:51]}  Ng6 {[%clk 0:02:31]} 8. Nc4 {[%clk 0:02:50]}  Qc7 {[%clk 0:02:30]} 9. Qe2 {[%clk 0:02:50]}  Ba6 {[%clk 0:02:03]} 10. b3 {[%clk 0:02:32]}  Bxc4 {[%clk 0:01:51]} 11. bxc4 {[%clk 0:02:33]}  fxe5 {[%clk 0:01:51]} 12. h4 {[%clk 0:02:32]}  d6 {[%clk 0:01:45]} 13. h5 {[%clk 0:02:31]}  Ne7 {[%clk 0:01:45]} 14. Ng5 {[%clk 0:02:26]}  Qd7 {[%clk 0:01:39]} 15. g4 {[%clk 0:02:23]}  Ng8 {[%clk 0:01:26]} 16. f4 {[%clk 0:02:20]}  h6 {[%clk 0:01:10]} 17. Ne4 {[%clk 0:02:17]}  exf4 {[%clk 0:01:06]} 18. Bxf4 {[%clk 0:02:18]}  Be7 {[%clk 0:00:52]} 19. O-O {[%clk 0:02:08]}  Nf6 {[%clk 0:00:52]} 20. Nxf6+ {[%clk 0:02:05]}  Bxf6 {[%clk 0:00:52]} 21. Rae1 {[%clk 0:02:05]}  Bd4+ {[%clk 0:00:44]} 22. Be3 {[%clk 0:02:03]}  e5 {[%clk 0:00:37]} 23. Bxd4 {[%clk 0:02:02]}  cxd4 {[%clk 0:00:37]} 24. Qe4 {[%clk 0:02:02]}  O-O-O {[%clk 0:00:37]} 25. Rf5 {[%clk 0:01:58]}  Rhf8 {[%clk 0:00:36]} 26. Ref1 {[%clk 0:01:58]}  Rxf5 {[%clk 0:00:37]} 27. Rxf5 {[%clk 0:01:58]}  Kc7 {[%clk 0:00:27]} 28. c5 {[%clk 0:01:57]}  Re8 {[%clk 0:00:27]} 29. cxd6+ {[%clk 0:01:50]}  Qxd6 {[%clk 0:00:27]} 30. Kg2 {[%clk 0:01:44]}  Re7 {[%clk 0:00:27]} 31. Rf8 {[%clk 0:01:39]}  Qd5 {[%clk 0:00:24]} 32. Kf3 {[%clk 0:01:15]}  Qxa2 {[%clk 0:00:18]} 33. Qf5 {[%clk 0:01:14]}  Qd5+ {[%clk 0:00:15]} 34. Kg3 {[%clk 0:01:14]}  Qd7 {[%clk 0:00:15]} 35. Qh7 {[%clk 0:01:04]}  e4 {[%clk 0:00:13]} 36. dxe4 {[%clk 0:01:02]}  d3 {[%clk 0:00:14]} 37. cxd3 {[%clk 0:01:03]}  Qxd3+ {[%clk 0:00:14]} 38. Rf3 {[%clk 0:01:03]}  Qd6+ {[%clk 0:00:13]} 39. Kh3 {[%clk 0:01:02]}  Qd1 {[%clk 0:00:13]} 40. Qf5 {[%clk 0:01:01]}  Qh1+ {[%clk 0:00:13]} 41. Kg3 {[%clk 0:01:02]}  Qg1+ {[%clk 0:00:13]} 42. Kh3 {[%clk 0:01:02]}  Qh1+ {[%clk 0:00:14]} 43. Kg3 {[%clk 0:01:03]}  Qg1+ {[%clk 0:00:14]} 44. Kh3 {[%clk 0:00:55]}  Qh1+ {[%clk 0:00:14]} 1/2-1/2


[Site "https://www.chess.com"]

[Event "Titled Tuesday Blitz October 31 Late 2023"]
[White "Terry, Renato"]
[Black "Seemann, Jakub"]
[WhiteFideId "3803457"]
[BlackFideId "21874697"]
[WhiteElo "3023"]
[BlackElo "2628"]
[Result "1-0"]
[Round "2"]
[TimeControl "180+1"]
[Date "2023.10.31"]
[WhiteClock "0:01:14"]
[BlackClock "0:00:00"]
[Board "7"]

1. e4 {[%clk 0:03:00]}  c5 {[%clk 0:02:58]} 2. Nf3 {[%clk 0:02:59]}  d6 {[%clk 0:02:58]} 3. Bb5+ {[%clk 0:02:59]}  Nd7 {[%clk 0:02:58]} 4. d4 {[%clk 0:02:59]}  cxd4 {[%clk 0:02:58]} 5. Qxd4 {[%clk 0:03:00]}  a6 {[%clk 0:02:57]} 6. Bxd7+ {[%clk 0:03:00]}  Bxd7 {[%clk 0:02:58]} 7. Bg5 {[%clk 0:03:00]}  Nf6 {[%clk 0:02:56]} 8. Nc3 {[%clk 0:02:59]}  e6 {[%clk 0:02:53]} 9. O-O-O {[%clk 0:02:59]}  Be7 {[%clk 0:02:42]} 10. e5 {[%clk 0:02:59]}  dxe5 {[%clk 0:02:40]} 11. Nxe5 {[%clk 0:02:59]}  Bc6 {[%clk 0:02:29]} 12. Nxc6 {[%clk 0:02:58]}  bxc6 {[%clk 0:02:30]} 13. Bxf6 {[%clk 0:02:58]}  Bxf6 {[%clk 0:02:24]} 14. Qc5 {[%clk 0:02:58]}  Qc7 {[%clk 0:02:18]} 15. Nd5 {[%clk 0:02:58]}  exd5 {[%clk 0:02:11]} 16. Rhe1+ {[%clk 0:02:57]}  Kd7 {[%clk 0:01:57]} 17. Rxd5+ {[%clk 0:02:56]}  cxd5 {[%clk 0:01:54]} 18. Qxd5+ {[%clk 0:02:56]}  Kc8 {[%clk 0:01:40]} 19. Qxa8+ {[%clk 0:02:56]}  Qb8 {[%clk 0:01:41]} 20. Qc6+ {[%clk 0:02:55]}  Qc7 {[%clk 0:01:41]} 21. Qa8+ {[%clk 0:02:55]}  Qb8 {[%clk 0:01:41]} 22. Qxa6+ {[%clk 0:02:55]}  Qb7 {[%clk 0:01:41]} 23. Qxb7+ {[%clk 0:02:54]}  Kxb7 {[%clk 0:01:41]} 24. c3 {[%clk 0:02:51]}  h5 {[%clk 0:01:38]} 25. a4 {[%clk 0:02:47]}  h4 {[%clk 0:01:38]} 26. Kc2 {[%clk 0:02:42]}  Rh5 {[%clk 0:01:38]} 27. b4 {[%clk 0:02:36]}  Rf5 {[%clk 0:01:36]} 28. Re2 {[%clk 0:02:34]}  h3 {[%clk 0:01:36]} 29. gxh3 {[%clk 0:02:17]}  Rf3 {[%clk 0:01:34]} 30. Re3 {[%clk 0:02:17]}  Rxf2+ {[%clk 0:01:32]} 31. Kb3 {[%clk 0:02:17]}  Rxh2 {[%clk 0:01:32]} 32. a5 {[%clk 0:02:09]}  Rf2 {[%clk 0:01:30]} 33. Rd3 {[%clk 0:02:04]}  Be5 {[%clk 0:01:11]} 34. c4 {[%clk 0:01:46]}  f5 {[%clk 0:01:04]} 35. b5 {[%clk 0:01:44]}  f4 {[%clk 0:01:01]} 36. c5 {[%clk 0:01:36]}  f3 {[%clk 0:00:49]} 37. a6+ {[%clk 0:01:35]}  Kc8 {[%clk 0:00:43]} 38. a7 {[%clk 0:01:15]}  Kb7 {[%clk 0:00:06]} 39. Rd7+ {[%clk 0:01:15]}  Ka8 {[%clk 0:00:06]} 40. b6 {[%clk 0:01:15]}  Bf6 {[%clk 0:00:02]} 41. Rc7 {[%clk 0:01:14]}  Rb2+ {[%clk 0:00:00]} 42. Ka3 {[%clk 0:01:14]} 1-0


[Site "https://www.chess.com"]

[Event "Titled Tuesday Blitz October 31 Late 2023"]
[White "Bjelobrk, Igor"]
[Black "Yoo, Christopher Woojin"]
[WhiteFideId "4300726"]
[BlackFideId "30909694"]
[WhiteElo "2626"]
[BlackElo "3012"]
[Result "0-1"]
[Round "2"]
[TimeControl "180+1"]
[Date "2023.10.31"]
[WhiteClock "0:00:28"]
[BlackClock "0:00:21"]
[Board "8"]

1. d4 {[%clk 0:03:00]}  Nf6 {[%clk 0:02:59]} 2. c4 {[%clk 0:02:59]}  e6 {[%clk 0:02:53]} 3. g3 {[%clk 0:02:58]}  d5 {[%clk 0:02:52]} 4. Nf3 {[%clk 0:02:57]}  Bb4+ {[%clk 0:02:52]} 5. Bd2 {[%clk 0:02:56]}  a5 {[%clk 0:02:52]} 6. Bg2 {[%clk 0:02:50]}  O-O {[%clk 0:02:52]} 7. Qc1 {[%clk 0:02:50]}  b6 {[%clk 0:02:47]} 8. O-O {[%clk 0:02:46]}  Ba6 {[%clk 0:02:45]} 9. b3 {[%clk 0:02:46]}  Nbd7 {[%clk 0:02:43]} 10. Bg5 {[%clk 0:02:40]}  Be7 {[%clk 0:02:36]} 11. a4 {[%clk 0:02:31]}  c5 {[%clk 0:02:34]} 12. Na3 {[%clk 0:02:29]}  Rc8 {[%clk 0:02:32]} 13. Qb2 {[%clk 0:02:24]}  Ne4 {[%clk 0:02:27]} 14. Bxe7 {[%clk 0:02:24]}  Qxe7 {[%clk 0:02:28]} 15. Rac1 {[%clk 0:02:22]}  Rc7 {[%clk 0:02:18]} 16. Rfd1 {[%clk 0:02:17]}  Rfc8 {[%clk 0:02:16]} 17. e3 {[%clk 0:02:09]}  Ndf6 {[%clk 0:01:49]} 18. Nb5 {[%clk 0:02:05]}  Bxb5 {[%clk 0:01:47]} 19. axb5 {[%clk 0:02:06]}  Nd7 {[%clk 0:01:29]} 20. dxc5 {[%clk 0:01:51]}  Ndxc5 {[%clk 0:01:07]} 21. cxd5 {[%clk 0:01:43]}  exd5 {[%clk 0:01:06]} 22. Rxd5 {[%clk 0:01:42]}  Ne6 {[%clk 0:00:47]} 23. Rxc7 {[%clk 0:01:40]}  Qxc7 {[%clk 0:00:48]} 24. Nd4 {[%clk 0:01:03]}  Qc1+ {[%clk 0:00:42]} 25. Qxc1 {[%clk 0:01:03]}  Rxc1+ {[%clk 0:00:42]} 26. Bf1 {[%clk 0:01:03]}  g6 {[%clk 0:00:28]} 27. Nxe6 {[%clk 0:01:02]}  fxe6 {[%clk 0:00:29]} 28. Rd8+ {[%clk 0:01:02]}  Kg7 {[%clk 0:00:29]} 29. f3 {[%clk 0:00:57]}  Nc5 {[%clk 0:00:27]} 30. Kf2 {[%clk 0:00:54]}  Nxb3 {[%clk 0:00:26]} 31. Rd6 {[%clk 0:00:51]}  a4 {[%clk 0:00:26]} 32. Rxb6 {[%clk 0:00:49]}  a3 {[%clk 0:00:26]} 33. Ra6 {[%clk 0:00:49]}  Rc2+ {[%clk 0:00:26]} 34. Be2 {[%clk 0:00:35]}  a2 {[%clk 0:00:26]} 35. b6 {[%clk 0:00:28]}  a1=Q {[%clk 0:00:21]} 0-1


[Site "https://www.chess.com"]

[Event "Titled Tuesday Blitz October 31 Late 2023"]
[White "Bortnyk, Mykola"]
[Black "Yelisieiev, Yevhenii"]
[WhiteFideId "14120836"]
[BlackFideId "14139642"]
[WhiteElo "3003"]
[BlackElo "2617"]
[Result "1-0"]
[Round "2"]
[TimeControl "180+1"]
[Date "2023.10.31"]
[WhiteClock "0:01:00"]
[BlackClock "0:00:01"]
[Board "9"]

1. e4 {[%clk 0:03:00]}  d6 {[%clk 0:03:00]} 2. d4 {[%clk 0:03:01]}  Nf6 {[%clk 0:03:00]} 3. Nc3 {[%clk 0:03:02]}  e5 {[%clk 0:03:01]} 4. Nf3 {[%clk 0:03:02]}  Nbd7 {[%clk 0:03:00]} 5. Bc4 {[%clk 0:03:02]}  Be7 {[%clk 0:03:01]} 6. a4 {[%clk 0:02:59]}  a5 {[%clk 0:02:56]} 7. Bxf7+ {[%clk 0:02:53]}  Kxf7 {[%clk 0:02:56]} 8. Ng5+ {[%clk 0:02:54]}  Kg8 {[%clk 0:02:55]} 9. Ne6 {[%clk 0:02:55]}  Qe8 {[%clk 0:02:55]} 10. Nxc7 {[%clk 0:02:56]}  Qg6 {[%clk 0:02:55]} 11. Nxa8 {[%clk 0:02:56]}  Qxg2 {[%clk 0:02:55]} 12. Rf1 {[%clk 0:02:56]}  exd4 {[%clk 0:02:55]} 13. Nb5 {[%clk 0:02:41]}  Ne5 {[%clk 0:02:22]} 14. f3 {[%clk 0:02:38]}  Nfg4 {[%clk 0:01:58]} 15. Qe2 {[%clk 0:02:27]}  Bh4+ {[%clk 0:01:53]} 16. Kd1 {[%clk 0:02:27]}  Nf2+ {[%clk 0:01:46]} 17. Rxf2 {[%clk 0:02:14]}  Bxf2 {[%clk 0:01:38]} 18. Bd2 {[%clk 0:01:57]}  d3 {[%clk 0:00:45]} 19. cxd3 {[%clk 0:01:47]}  Nxf3 {[%clk 0:00:42]} 20. Kc2 {[%clk 0:01:45]}  Bg4 {[%clk 0:00:39]} 21. Qf1 {[%clk 0:01:39]}  Qxh2 {[%clk 0:00:28]} 22. Qh1 {[%clk 0:01:28]}  Qe5 {[%clk 0:00:25]} 23. Bc3 {[%clk 0:01:25]}  Qc5 {[%clk 0:00:22]} 24. Qg2 {[%clk 0:01:25]}  h5 {[%clk 0:00:17]} 25. Rf1 {[%clk 0:01:23]}  Ne1+ {[%clk 0:00:12]} 26. Rxe1 {[%clk 0:01:19]}  Bxe1 {[%clk 0:00:13]} 27. d4 {[%clk 0:01:16]}  Qc4 {[%clk 0:00:12]} 28. Nb6 {[%clk 0:01:17]}  Qc6 {[%clk 0:00:09]} 29. Nd5 {[%clk 0:01:17]}  Bxc3 {[%clk 0:00:09]} 30. Ne7+ {[%clk 0:01:18]}  Kh7 {[%clk 0:00:09]} 31. Nxc6 {[%clk 0:01:18]}  bxc6 {[%clk 0:00:09]} 32. Nxc3 {[%clk 0:01:18]}  Rf8 {[%clk 0:00:09]} 33. e5 {[%clk 0:01:16]}  dxe5 {[%clk 0:00:09]} 34. dxe5 {[%clk 0:01:16]}  Bf3 {[%clk 0:00:09]} 35. Qg5 {[%clk 0:01:15]}  Bg4 {[%clk 0:00:05]} 36. Ne4 {[%clk 0:01:11]}  Rf5 {[%clk 0:00:03]} 37. Qe7 {[%clk 0:01:10]}  Rf4 {[%clk 0:00:03]} 38. Nf6+ {[%clk 0:01:07]}  Kg6 {[%clk 0:00:03]} 39. Nxg4 {[%clk 0:01:00]}  hxg4 {[%clk 0:00:04]} 40. Qd6+ {[%clk 0:00:59]}  Kg5 {[%clk 0:00:03]} 41. e6 {[%clk 0:00:59]}  g3 {[%clk 0:00:03]} 42. Qe5+ {[%clk 0:00:58]}  Rf5 {[%clk 0:00:03]} 43. Qxg7+ {[%clk 0:00:58]}  Kf4 {[%clk 0:00:03]} 44. e7 {[%clk 0:00:59]}  Re5 {[%clk 0:00:03]} 45. Qxe5+ {[%clk 0:00:59]}  Kxe5 {[%clk 0:00:01]} 46. e8=Q+ {[%clk 0:01:00]} 1-0


[Site "https://www.chess.com"]

[Event "Titled Tuesday Blitz October 31 Late 2023"]
[White "Krishnan, Varun"]
[Black "Hong, Andrew"]
[WhiteFideId "5054508"]
[BlackFideId "2099438"]
[WhiteElo "2610"]
[BlackElo "2958"]
[Result "0-1"]
[Round "2"]
[TimeControl "180+1"]
[Date "2023.10.31"]
[WhiteClock "0:00:35"]
[BlackClock "0:01:16"]
[Board "12"]

1. e4 {[%clk 0:03:00]}  c5 {[%clk 0:02:58]} 2. Nf3 {[%clk 0:03:00]}  a6 {[%clk 0:02:58]} 3. c4 {[%clk 0:02:59]}  g6 {[%clk 0:02:58]} 4. d4 {[%clk 0:02:55]}  Bg7 {[%clk 0:02:57]} 5. Nc3 {[%clk 0:02:48]}  cxd4 {[%clk 0:02:57]} 6. Nxd4 {[%clk 0:02:48]}  Nc6 {[%clk 0:02:57]} 7. Be3 {[%clk 0:02:47]}  Nf6 {[%clk 0:02:57]} 8. f3 {[%clk 0:02:42]}  O-O {[%clk 0:02:55]} 9. Qd2 {[%clk 0:02:42]}  d6 {[%clk 0:02:49]} 10. Be2 {[%clk 0:02:42]}  Bd7 {[%clk 0:02:45]} 11. O-O {[%clk 0:02:42]}  Qb8 {[%clk 0:02:43]} 12. a4 {[%clk 0:02:33]}  Rc8 {[%clk 0:02:38]} 13. a5 {[%clk 0:02:30]}  Qc7 {[%clk 0:02:31]} 14. Nd5 {[%clk 0:02:20]}  Nxd5 {[%clk 0:02:30]} 15. cxd5 {[%clk 0:02:20]}  Nxd4 {[%clk 0:02:25]} 16. Bxd4 {[%clk 0:02:19]}  Qc2 {[%clk 0:02:24]} 17. Be3 {[%clk 0:01:48]}  Qxd2 {[%clk 0:02:11]} 18. Bxd2 {[%clk 0:01:48]}  Bd4+ {[%clk 0:02:08]} 19. Kh1 {[%clk 0:01:47]}  Rc2 {[%clk 0:02:08]} 20. Rfd1 {[%clk 0:01:47]}  Rac8 {[%clk 0:02:05]} 21. Rab1 {[%clk 0:01:25]}  Rxb2 {[%clk 0:01:52]} 22. Rxb2 {[%clk 0:01:25]}  Bxb2 {[%clk 0:01:53]} 23. Bd3 {[%clk 0:01:22]}  Bc3 {[%clk 0:01:51]} 24. Kg1 {[%clk 0:01:12]}  Ba4 {[%clk 0:01:40]} 25. Rc1 {[%clk 0:01:02]}  Bd4+ {[%clk 0:01:40]} 26. Kf1 {[%clk 0:01:02]}  Rxc1+ {[%clk 0:01:40]} 27. Bxc1 {[%clk 0:01:02]}  Bc3 {[%clk 0:01:41]} 28. e5 {[%clk 0:00:54]}  Bxe5 {[%clk 0:01:28]} 29. Bd2 {[%clk 0:00:54]}  Bxh2 {[%clk 0:01:21]} 30. f4 {[%clk 0:00:51]}  Bg3 {[%clk 0:01:21]} 31. Be2 {[%clk 0:00:46]}  h5 {[%clk 0:01:18]} 32. f5 {[%clk 0:00:45]}  Bb5 {[%clk 0:01:15]} 33. Bxb5 {[%clk 0:00:43]}  axb5 {[%clk 0:01:16]} 34. fxg6 {[%clk 0:00:40]}  fxg6 {[%clk 0:01:17]} 35. Ke2 {[%clk 0:00:41]}  Kf7 {[%clk 0:01:15]} 36. Kd3 {[%clk 0:00:41]}  Bf2 {[%clk 0:01:14]} 37. Kc3 {[%clk 0:00:40]}  Bc5 {[%clk 0:01:14]} 38. Kb3 {[%clk 0:00:40]}  Kf6 {[%clk 0:01:13]} 39. Bc3+ {[%clk 0:00:35]}  Kf5 {[%clk 0:01:13]} 40. Bg7 {[%clk 0:00:34]}  g5 {[%clk 0:01:13]} 41. Bf8 {[%clk 0:00:34]}  Kf6 {[%clk 0:01:13]} 42. Kc2 {[%clk 0:00:32]}  h4 {[%clk 0:01:13]} 43. Kd3 {[%clk 0:00:31]}  g4 {[%clk 0:01:13]} 44. Ke4 {[%clk 0:00:31]}  b4 {[%clk 0:01:13]} 45. Bh6 {[%clk 0:00:31]}  b3 {[%clk 0:01:13]} 46. Bc1 {[%clk 0:00:31]}  h3 {[%clk 0:01:13]} 47. Bb2+ {[%clk 0:00:30]}  Kg5 {[%clk 0:01:13]} 48. gxh3 {[%clk 0:00:30]}  gxh3 {[%clk 0:01:14]} 49. Kf3 {[%clk 0:00:30]}  Kf5 {[%clk 0:01:13]} 50. Kg3 {[%clk 0:00:29]}  Ke4 {[%clk 0:01:14]} 51. Kxh3 {[%clk 0:00:30]}  Bd4 {[%clk 0:01:14]} 52. Ba3 {[%clk 0:00:29]}  b2 {[%clk 0:01:14]} 53. Bxb2 {[%clk 0:00:29]}  Bxb2 {[%clk 0:01:15]} 54. Kg4 {[%clk 0:00:29]}  Kxd5 {[%clk 0:01:15]} 55. Kf5 {[%clk 0:00:30]}  e5 {[%clk 0:01:15]} 56. Kg6 {[%clk 0:00:30]}  Kc6 {[%clk 0:01:15]} 57. Kf7 {[%clk 0:00:31]}  e4 {[%clk 0:01:15]} 58. Ke6 {[%clk 0:00:31]}  e3 {[%clk 0:01:15]} 59. Kf7 {[%clk 0:00:32]}  e2 {[%clk 0:01:15]} 60. Ke8 {[%clk 0:00:33]}  e1=Q+ {[%clk 0:01:16]} 61. Kd8 {[%clk 0:00:34]}  Bf6+ {[%clk 0:01:16]} 62. Kc8 {[%clk 0:00:35]}  Qe8# {[%clk 0:01:16]} 0-1


[Site "https://www.chess.com"]